lending/lending_fUSD_20250408
["ID","MTS","AMOUNT","RATE_DAILY","PERIOD"]
[357534822,1744131122589,-939.58,0.00029589,2]
[357534823,1744131122598,-735.03,0.00029589,2]
[357534824,1744131122608,-524.35,0.00029589,2]
[357534825,1744131122618,-619.77588603,0.00029589,2]
[357534826,1744131122627,-500.0,0.00029589,2]
[357534827,1744131122637,-1127.76,0.00029589,2]
[357534828,1744131122646,-500.0,0.00029589,2]
[357534829,1744131122655,-500.0,0.00029589,2]
[357534830,1744131122665,-950.17,0.00029589,2]
[357534831,1744131122674,-500.0,0.00029589,2]
[357534832,1744131122684,-1017.57,0.00029589,2]
[357534833,1744131122694,-6178.64,0.00029589,2]
[357534834,1744131122703,-396.28,0.00029589,2]
[357534835,1744131122713,-513.55,0.00029589,2]
[357534836,1744131122723,-500.0,0.00029589,2]
[357534837,1744131122732,-1089.76,0.00029589,2]
[357534838,1744131122741,-549.65,0.00029589,2]
[357534839,1744131122751,-578.6,0.00029589,2]
[357534840,1744131122760,-1940.65,0.00029589,2]
[357534841,1744131122770,-841.6,0.00029589,2]
[357534842,1744131122779,-671.05,0.00029589,2]
[357534843,1744131122789,-3839.98,0.00029589,2]
[357534844,1744131122799,-500.0,0.00029589,2]
[357534845,1744131122808,-500.0,0.00029589,2]
[357534846,1744131122819,-558.9,0.00029589,2]
[357534847,1744131122832,-500.0,0.00029589,2]
[357534848,1744131122841,-1739.52,0.00029589,2]
[357534849,1744131122853,-500.0,0.00029589,2]
[357534850,1744131122863,-500.0,0.00029589,2]
[357534851,1744131122874,-853.97,0.00029589,2]
[357534852,1744131122886,-180.004315,0.00029589,7]
[357534853,1744131122896,-727.58,0.00029589,2]
[357534854,1744131122906,-734.69,0.00029589,2]
[357534855,1744131122916,-1008.41,0.00029589,2]
[357534856,1744131122925,-606.16807574,0.00029589,2]
[357534857,1744131122935,-180.004309,0.00029589,7]
[357534858,1744131122945,-990.1,0.00029589,2]
[357534859,1744131122955,-737.46,0.00029589,2]
[357534860,1744131122964,-500.0,0.00029589,2]
[357534861,1744131122975,-880.15,0.00029589,2]
[357534862,1744131122985,-825.98,0.00029589,2]
[357534863,1744131122994,-500.0,0.00029589,2]
[357534864,1744131123005,-872.33,0.00029589,2]
[357534865,1744131123014,-506.13,0.00029589,2]
[357534866,1744131123024,-2261.1,0.00029589,2]
[357534867,1744131123034,-500.0,0.00029589,2]
[357534868,1744131123045,-2351.91,0.00029589,2]
[357534869,1744131123054,-1830.5,0.00029589,2]
[357534870,1744131123064,-500.0,0.00029589,2]
[357534871,1744131123079,-727.88,0.00029589,2]
[357534872,1744131123090,-986.07,0.00029589,2]
[357534873,1744131123102,-1859.52,0.00029589,2]
[357534874,1744131123112,-665.51,0.00029589,2]
[357534875,1744131123122,-593.3,0.00029589,2]
[357534876,1744131123133,-500.0,0.00029589,2]
[357534877,1744131123143,-500.0,0.00029589,2]
[357534878,1744131123155,-1483.68,0.00029589,2]
[357534879,1744131123166,-500.0,0.00029589,2]
[357534880,1744131123176,-4169.04,0.00029589,2]
[357534881,1744131123187,-1258.57,0.00029589,2]
[357534882,1744131123197,-500.0,0.00029589,2]
[357534883,1744131123208,-524.58,0.00029589,2]
[357534884,1744131123218,-500.0,0.00029589,2]
[357534885,1744131123228,-646.63,0.00029589,2]
[357534886,1744131123238,-500.0,0.00029589,2]
[357534887,1744131123248,-500.0,0.00029589,2]
[357534888,1744131123259,-808.53,0.00029589,2]
[357534889,1744131123268,-1146.51,0.00029589,2]
[357534890,1744131123279,-535.91,0.00029589,2]
[357534891,1744131123290,-24279.06,0.00029589,2]
[357534892,1744131123301,-500.0,0.00029589,2]
[357534893,1744131123311,-500.0,0.00029589,2]
[357534894,1744131123324,-601.34120314,0.00029589,2]
[357534895,1744131123334,-500.0,0.00029589,2]
[357534896,1744131123343,-500.0,0.00029589,2]
[357534897,1744131123353,-1842.22,0.00029589,2]
[357534898,1744131123362,-632.96,0.00029589,2]
[357534899,1744131123372,-500.0,0.00029589,2]
[357534900,1744131123383,-892.34,0.00029589,2]
[357534901,1744131123394,-921.97,0.00029589,2]
[357534902,1744131123404,-575.39,0.00029589,2]
[357534903,1744131123415,-735.43,0.00029589,2]
[357534904,1744131123426,-500.0,0.00029589,2]
[357534905,1744131123437,-500.0,0.00029589,2]
[357534906,1744131123447,-500.0,0.00029589,2]
[357534907,1744131123457,-1216.92,0.00029589,2]
[357534908,1744131123466,-589.43,0.00029589,2]
[357534909,1744131123477,-500.0,0.00029589,2]
[357534910,1744131123487,-500.0,0.00029589,2]
[357534911,1744131123497,-500.0,0.00029589,2]
[357534912,1744131123507,-646.32,0.00029589,2]
[357534913,1744131123517,-1299.3,0.00029589,2]
[357534914,1744131123527,-573.57340389,0.00029589,2]
[357534915,1744131123537,-616.22,0.00029589,2]
[357534916,1744131123547,-4391.56,0.00029589,2]
[357534917,1744131123558,-735.03,0.00029589,2]
[357534918,1744131123570,-500.0,0.00029589,2]
[357534919,1744131123581,-830.9,0.00029589,2]
[357534920,1744131123591,-573.44,0.00029589,2]
[357534921,1744131123601,-542.44,0.00029589,2]
[357534922,1744131123614,-500.0,0.00029589,2]
[357534923,1744131123624,-1398.27,0.00029589,2]
[357534924,1744131123633,-500.0,0.00029589,2]
[357534925,1744131123643,-500.0,0.00029589,2]
[357534926,1744131123654,-763.62,0.00029589,2]
[357534927,1744131123664,-745.57,0.00029589,2]
[357534928,1744131123673,-500.0,0.00029589,2]
[357534929,1744131123683,-1043.21,0.00029589,2]
[357534930,1744131123693,-812.8,0.00029589,2]
[357534931,1744131123703,-500.0,0.00029589,2]
[357534932,1744131123712,-836.32,0.00029589,2]
[357534933,1744131123722,-813.0,0.00029589,2]
[357534934,1744131123732,-500.0,0.00029589,2]
[357534935,1744131123742,-500.0,0.00029589,2]
[357534936,1744131123753,-500.0,0.00029589,2]
[357534937,1744131123763,-684.15,0.00029589,2]
[357534938,1744131123773,-1564.46,0.00029589,2]
[357534939,1744131123783,-984.76,0.00029589,2]
[357534940,1744131123793,-615.97,0.00029589,2]
[357534941,1744131123802,-630.49,0.00029589,2]
[357534942,1744131123812,-780.29,0.00029589,2]
[357534943,1744131123822,-500.0,0.00029589,2]
[357534944,1744131123834,-794.86,0.00029589,2]
[357534945,1744131123844,-918.03,0.00029589,2]
[357534946,1744131123854,-6319.24,0.00029589,2]
[357534947,1744131123864,-929.59,0.00029589,2]
[357534948,1744131123875,-1679.19,0.00029589,2]
[357534949,1744131123886,-500.0,0.00029589,2]
[357534950,1744131123897,-660.39,0.00029589,2]
[357534951,1744131123908,-639.27,0.00029589,2]
[357534952,1744131123918,-500.0,0.00029589,2]
[357534953,1744131123929,-500.0,0.00029589,2]
[357534954,1744131123938,-725.42,0.00029589,2]
[357534955,1744131123948,-751.14,0.00029589,2]
[357534956,1744131123958,-500.0,0.00029589,2]
[357534957,1744131123968,-500.0,0.00029589,2]
[357534958,1744131123978,-1183.67,0.00029589,2]
[357534959,1744131123988,-1092.38,0.00029589,2]
[357534960,1744131123999,-964.81,0.00029589,2]
[357534961,1744131124009,-500.0,0.00029863,2]
[357534962,1744131124019,-500.0,0.00029863,2]
[357534963,1744131124029,-500.0,0.00029863,2]
[357534964,1744131124039,-500.0,0.00029863,2]
[357534965,1744131124049,-521.99,0.00029863,2]
[357534966,1744131124059,-1012.34,0.00029863,2]
[357534967,1744131124068,-500.0,0.00029863,2]
[357534968,1744131124081,-500.0,0.00029863,2]
[357534969,1744131124093,-500.0,0.00029863,2]
[357534970,1744131124102,-500.0,0.00029863,2]
[357534971,1744131124113,-1008.75,0.00029863,2]
[357534972,1744131124123,-217.28013729,0.00029863,2]
[357534973,1744131124134,-557.72774339,0.00029863,2]
[357534974,1744131124144,-938.36,0.00029863,2]
[357534975,1744131124155,-572.69,0.00029863,2]
[357534976,1744131124165,-500.0,0.00029863,2]
[357534977,1744131124175,-500.0,0.00029863,2]
[357534978,1744131124184,-500.0,0.00029863,2]
[357534979,1744131124194,-799.85,0.00029863,2]
[357534980,1744131124203,-500.0,0.00029863,2]
[357534981,1744131124213,-500.0,0.00029863,2]
[357534982,1744131124223,-500.0,0.00029863,2]
[357534983,1744131124232,-500.0,0.00029863,2]
[357534984,1744131124243,-500.0,0.00029863,2]
[357534985,1744131124252,-500.0,0.00029863,2]
[357534986,1744131124261,-500.0,0.00029863,2]
[357534987,1744131124271,-500.0,0.00029863,2]
[357534988,1744131124280,-500.0,0.00029863,2]
[357534989,1744131124292,-936.4,0.00029863,2]
[357534990,1744131124302,-500.0,0.00029863,2]
[357534991,1744131124311,-500.0,0.00029863,2]
[357534992,1744131124321,-736.0,0.00029863,2]
[357534993,1744131124335,-500.0,0.00029863,2]
[357534994,1744131124345,-500.0,0.00029863,2]
[357534995,1744131124355,-550.93,0.00029863,2]
[357534996,1744131124364,-500.0,0.00029863,2]
[357534997,1744131124374,-226.31307133,0.00029863,2]
[357534998,1744131124384,-500.0,0.00029863,2]
[357534999,1744131124394,-621.25,0.00029863,2]
[357535000,1744131124403,-500.0,0.00029863,2]
[357535001,1744131124413,-500.0,0.00029863,2]
[357535002,1744131124422,-500.0,0.00029863,2]
[357535003,1744131124432,-500.0,0.00029863,2]
[357535004,1744131124442,-500.0,0.00029863,2]
[357535005,1744131124452,-500.0,0.00029863,2]
[357535006,1744131124462,-1509.4,0.00029863,2]
[357535007,1744131124472,-768.18,0.00029863,2]
[357535008,1744131124482,-500.0,0.00029863,2]
[357535009,1744131124491,-500.0,0.00029863,2]
[357535010,1744131124501,-734.29,0.00029863,2]
[357535011,1744131124510,-500.0,0.00029863,2]
[357535012,1744131124520,-500.0,0.00029863,2]
[357535013,1744131124530,-707.17,0.00029863,2]
[357535014,1744131124539,-500.0,0.00029863,2]
[357535015,1744131124549,-500.0,0.00029863,2]
[357535016,1744131124559,-500.0,0.00029863,2]
[357535017,1744131124568,-509.41,0.00029863,2]
[357535018,1744131124579,-500.0,0.00029863,2]
[357535019,1744131124589,-500.0,0.00029863,2]
[357535020,1744131124598,-1220.84,0.00029863,2]
[357535021,1744131124607,-500.0,0.00029863,2]
[357535022,1744131124616,-500.0,0.00029863,2]
[357535023,1744131124625,-500.0,0.00029863,2]
[357535024,1744131124635,-500.0,0.00029863,2]
[357535025,1744131124644,-500.0,0.00029863,2]
[357535026,1744131124653,-500.0,0.00029863,2]
[357535027,1744131124662,-500.0,0.00029863,2]
[357535028,1744131124671,-500.0,0.00029863,2]
[357535029,1744131124680,-500.0,0.00029863,2]
[357535030,1744131124689,-545.03,0.00029863,2]
[357535031,1744131124699,-500.0,0.00029863,2]
[357535032,1744131124708,-500.0,0.00029863,2]
[357535033,1744131124717,-500.0,0.00029863,2]
[357535034,1744131124726,-500.0,0.00029863,2]
[357535035,1744131124735,-500.0,0.00029863,2]
[357535036,1744131124744,-1019.54,0.00029863,2]
[357535037,1744131124754,-538.21,0.00029863,2]
[357535038,1744131124763,-1644.68,0.00029863,2]
[357535039,1744131124771,-500.0,0.00029863,2]
[357535040,1744131124780,-734.05,0.00029863,2]
[357535041,1744131124789,-500.0,0.00029863,2]
[357535042,1744131124799,-500.0,0.00029863,2]
[357535043,1744131124808,-500.0,0.00029863,2]
[357535044,1744131124989,-1425.74,0.00029863,2]
[357535045,1744131124999,-1187.81,0.00029863,2]
[357535046,1744131125009,-500.0,0.00029863,2]
[357535047,1744131125018,-500.0,0.00029863,2]
[357535048,1744131125027,-500.0,0.00029863,2]
[357535049,1744131125037,-500.0,0.00029863,2]
[357535050,1744131125046,-500.0,0.00029863,2]
[357535051,1744131125055,-1273.1,0.00029863,2]
[357535052,1744131125064,-500.0,0.00029863,2]
[357535053,1744131125076,-1048.09,0.00029863,2]
[357535054,1744131125085,-436.9860918,0.00029863,2]
[357535055,1744131125099,-531.84,0.00029863,2]
[357535056,1744131125108,-500.0,0.00029863,2]
[357535057,1744131125117,-500.0,0.00029863,2]
[357535058,1744131125127,-686.22,0.00029863,2]
[357535059,1744131125138,-643.82,0.00029863,2]
[357535060,1744131125147,-589.26,0.00029863,2]
[357535061,1744131125157,-530.29,0.00029863,2]
[357535062,1744131125167,-1739.87,0.00029863,2]
[357535063,1744131125177,-913.6,0.00029863,2]
[357535064,1744131125186,-500.0,0.00029863,2]
[357535065,1744131125195,-500.0,0.00029863,2]
[357535066,1744131125205,-541.35,0.00029863,2]
[357535067,1744131125214,-500.0,0.00029863,2]
[357535068,1744131125224,-500.0,0.00029863,2]
[357535069,1744131125234,-524.83,0.00029863,2]
[357535070,1744131125243,-853.97,0.00029863,2]
[357535071,1744131125252,-500.0,0.00029863,2]
[357535072,1744131125261,-500.0,0.00029863,2]
[357535073,1744131125271,-500.0,0.00029863,2]
[357535074,1744131125280,-500.0,0.00029863,2]
[357535075,1744131125290,-1206.08,0.00029863,2]
[357535076,1744131125299,-500.0,0.00029863,2]
[357535077,1744131125309,-500.0,0.00029863,2]
[357535078,1744131125318,-500.0,0.00029863,2]
[357535079,1744131125329,-839.17,0.00029863,2]
[357535080,1744131125338,-500.0,0.00029863,2]
[357535081,1744131125348,-500.0,0.00029863,2]
[357535082,1744131125357,-500.0,0.00029863,2]
[357535083,1744131125366,-1079.35,0.00029863,2]
[357535084,1744131125376,-359.9413047,0.00029863,2]
[357535085,1744131125385,-500.0,0.00029863,2]
[357535086,1744131125395,-646.6,0.00029863,2]
[357535087,1744131125404,-500.0,0.00029863,2]
[357535088,1744131125414,-500.0,0.00029863,2]
[357535089,1744131125423,-500.0,0.00029863,2]
[357535090,1744131125432,-1392.68,0.00029863,2]
[357535091,1744131125442,-1013.5,0.00029863,2]
[357535092,1744131125451,-1047.48,0.00029863,2]
[357535093,1744131125462,-500.0,0.00029863,2]
[357535094,1744131125471,-1138.94,0.00029863,2]
[357535095,1744131125481,-500.0,0.00029863,2]
[357535096,1744131125494,-500.0,0.00029863,2]
[357535097,1744131125503,-500.0,0.00029863,2]
[357535098,1744131125513,-571.65,0.00029863,2]
[357535099,1744131125522,-500.0,0.00029863,2]
[357535100,1744131125531,-500.0,0.00029863,2]
[357535101,1744131125542,-500.0,0.00029863,2]
[357535102,1744131125552,-500.0,0.00029863,2]
[357535103,1744131125562,-985.93,0.00029863,2]
[357535104,1744131125571,-500.0,0.00029863,2]
[357535105,1744131125587,-500.0,0.00029863,2]
[357535106,1744131125596,-500.0,0.00029863,2]
[357535107,1744131125606,-500.0,0.00029863,2]
[357535108,1744131125615,-176.29880904,0.00029863,2]
[357535109,1744131125624,-500.0,0.00029863,2]
[357535110,1744131125633,-500.0,0.00029863,2]
[357535111,1744131125643,-893.75,0.00029863,2]
[357535112,1744131125652,-500.0,0.00029863,2]
[357535113,1744131125661,-882.81,0.00029863,2]
[357535114,1744131125670,-635.65,0.00029863,2]
[357535115,1744131125679,-500.0,0.00029863,2]
[357535116,1744131125688,-554.86,0.00029863,2]
[357535117,1744131125697,-500.0,0.00029863,2]
[357535118,1744131125707,-1285.07,0.00029863,2]
[357535119,1744131125716,-500.0,0.00029863,2]
[357535120,1744131125726,-815.01,0.00029863,2]
[357535121,1744131125736,-2250.35,0.00029863,2]
[357535122,1744131125745,-828.56,0.00029863,2]
[357535123,1744131125754,-614.78725969,0.00029863,2]
[357535124,1744131125763,-553.89,0.00029863,2]
[357535125,1744131125773,-554.97,0.00029863,2]
[357535126,1744131125782,-571.07,0.00029863,2]
[357535127,1744131125791,-500.0,0.00029863,2]
[357535128,1744131125800,-500.0,0.00029863,2]
[357535129,1744131125809,-635.52,0.00029863,2]
[357535130,1744131125818,-500.0,0.00029863,2]
[357535131,1744131125830,-299.88095888,0.00029863,2]
[357535132,1744131125840,-729.33,0.00029863,2]
[357535133,1744131125849,-500.0,0.00029863,2]
[357535134,1744131125858,-1155.37,0.00029863,2]
[357535135,1744131125868,-500.0,0.00029863,2]
[357535136,1744131125878,-683.43,0.00029863,2]
[357535137,1744131125887,-500.0,0.00029863,2]
[357535138,1744131125896,-659.52,0.00029863,2]
[357535139,1744131125906,-959.29,0.00029863,2]
[357535140,1744131125915,-1042.58,0.00029863,2]
[357535141,1744131125923,-500.0,0.00029863,2]
[357535142,1744131125933,-500.0,0.00029863,2]
[357535143,1744131125942,-502.74,0.00029863,2]
[357535144,1744131125952,-500.0,0.00029863,2]
[357535145,1744131125961,-500.0,0.00029863,2]
[357535146,1744131125971,-500.0,0.00029863,2]
[357535147,1744131125981,-500.0,0.00029863,2]
[357535148,1744131125991,-500.0,0.00029863,2]
[357535149,1744131126000,-651.5,0.00029863,2]
[357535150,1744131126010,-500.0,0.00029863,2]
[357535151,1744131126019,-594.23,0.00029863,2]
[357535152,1744131126028,-594.32,0.00029863,2]
[357535153,1744131126037,-764.58,0.00029863,2]
[357535154,1744131126046,-554.84,0.00029863,2]
[357535155,1744131126056,-1066.53,0.00029863,2]
[357535156,1744131126065,-500.0,0.00029863,2]
[357535157,1744131126076,-500.0,0.00029863,2]
[357535158,1744131126087,-784.39,0.00029863,2]
[357535159,1744131126098,-508.06,0.00029863,2]
[357535160,1744131126107,-513.92,0.00029863,2]
[357535161,1744131126116,-500.0,0.00029863,2]
[357535162,1744131126126,-2000.0,0.00029863,2]
[357535163,1744131126135,-568.34,0.00029863,2]
[357535164,1744131126145,-500.0,0.00029863,2]
[357535165,1744131126156,-1465.9,0.00029863,2]
[357535166,1744131126168,-583.31,0.00029863,2]
[357535167,1744131126179,-627.5,0.00029863,2]
[357535168,1744131126188,-500.0,0.00029863,2]
[357535169,1744131126197,-500.0,0.00029863,2]
[357535170,1744131126207,-500.0,0.00029863,2]
[357535171,1744131126217,-500.0,0.00029863,2]
[357535172,1744131126226,-570.96,0.00029863,2]
[357535173,1744131126235,-500.0,0.00029863,2]
[357535174,1744131126245,-702.55,0.00029863,2]
[357535175,1744131126265,-500.0,0.00029863,2]
[357535176,1744131126282,-500.0,0.00029863,2]
[357535177,1744131126300,-500.0,0.00029863,2]
[357535178,1744131126318,-627.68,0.00029863,2]
[357535179,1744131126339,-500.0,0.00029863,2]
[357535180,1744131126358,-537.7,0.00029863,2]
[357535181,1744131126377,-600.21,0.00029863,2]
[357535182,1744131126397,-717.93,0.00029863,2]
[357535183,1744131126414,-525.64,0.00029863,2]
[357535184,1744131126433,-683.46,0.00029863,2]
[357535185,1744131126449,-500.0,0.00029863,2]
[357535186,1744131126465,-500.0,0.00029863,2]
[357535187,1744131126481,-500.0,0.00029863,2]
[357535188,1744131126496,-500.0,0.00029863,2]
[357535189,1744131126512,-1354.7,0.00029863,2]
[357535190,1744131126528,-748.01,0.00029863,2]
[357535191,1744131126544,-1010.61,0.00029863,2]
[357535192,1744131126560,-500.0,0.00029863,2]
[357535193,1744131126576,-500.0,0.00029863,2]
[357535194,1744131126592,-564.61,0.00029863,2]
[357535195,1744131126607,-500.0,0.00029863,2]
[357535196,1744131126621,-500.0,0.00029863,2]
[357535197,1744131126636,-500.0,0.00029863,2]
[357535198,1744131126652,-790.51,0.00029863,2]
[357535199,1744131126666,-500.0,0.00029863,2]
[357535200,1744131126681,-1476.66,0.00029863,2]
[357535201,1744131126697,-500.0,0.00029863,2]
[357535202,1744131126711,-500.0,0.00029863,2]
[357535203,1744131126726,-500.0,0.00029863,2]
[357535204,1744131126740,-655.26,0.00029863,2]
[357535205,1744131126756,-500.0,0.00029863,2]
[357535206,1744131126771,-500.0,0.00029863,2]
[357535207,1744131126788,-737.15,0.00029863,2]
[357535208,1744131126801,-539.63,0.00029863,2]
[357535209,1744131126819,-500.0,0.00029863,2]
[357535210,1744131126835,-500.0,0.00029863,2]
[357535211,1744131126850,-703.81,0.00029863,2]
[357535212,1744131126865,-959.99,0.00029863,2]
[357535213,1744131126880,-677.2,0.00029863,2]
[357535214,1744131126895,-704.21,0.00029863,2]
[357535215,1744131126910,-641.96,0.00029863,2]
[357535216,1744131126925,-505.48,0.00029863,2]
[357535217,1744131126940,-932.66,0.00029863,2]
[357535218,1744131126954,-812.56,0.00029863,2]
[357535219,1744131126969,-1465.75,0.00029863,2]
[357535220,1744131126984,-580.15,0.00029863,2]
[357535221,1744131127000,-888.6,0.00029863,2]
[357535222,1744131127016,-545.23,0.00029863,2]
[357535223,1744131127030,-889.0,0.00029863,2]
[357535224,1744131127046,-2260.02,0.00029863,2]
[357535225,1744131127060,-794.37,0.00029863,2]
[357535226,1744131127077,-500.0,0.00029863,2]
[357535227,1744131127095,-613.35,0.00029863,2]
[357535228,1744131127110,-567.81,0.00029863,2]
[357535229,1744131127125,-500.0,0.00029863,2]
[357535230,1744131127139,-808.98,0.00029863,2]
[357535231,1744131127154,-845.46,0.00029863,2]
[357535232,1744131127171,-593.3,0.00029863,2]
[357535233,1744131127187,-500.0,0.00029863,2]
[357535234,1744131127203,-581.16,0.00029863,2]
[357535235,1744131127217,-500.0,0.00029863,2]
[357535236,1744131127232,-878.06,0.00029863,2]
[357535237,1744131127248,-500.0,0.00029863,2]
[357535238,1744131127264,-1056.72,0.00029863,2]
[357535239,1744131127280,-500.0,0.00029863,2]
[357535240,1744131127296,-1037.85,0.00029863,2]
[357535241,1744131127312,-624.4,0.00029863,2]
[357535242,1744131127327,-500.0,0.00029863,2]
[357535243,1744131127342,-500.0,0.00029863,2]
[357535244,1744131127358,-500.0,0.00029863,2]
[357535245,1744131127374,-547.36,0.00029863,2]
[357535246,1744131127388,-500.0,0.00029863,2]
[357535247,1744131127403,-255.8,0.00029863,2]
[357535248,1744131127417,-1221.73,0.00029863,2]
[357535249,1744131127432,-500.0,0.00029863,2]
[357535250,1744131127447,-541.77,0.00029863,2]
[357535251,1744131127463,-1049.21,0.00029863,2]
[357535252,1744131127477,-500.0,0.00029863,2]
[357535253,1744131127492,-833.03,0.00029863,2]
[357535254,1744131127507,-500.0,0.00029863,2]
[357535255,1744131127521,-947.72,0.00029863,2]
[357535256,1744131127536,-915.59,0.00029863,2]
[357535257,1744131127551,-409.51593139,0.00029863,2]
[357535258,1744131127567,-500.0,0.00029863,2]
[357535259,1744131127586,-2154.22,0.00029863,2]
[357535260,1744131127602,-500.0,0.00029863,2]
[357535261,1744131127617,-715.09,0.00029863,2]
[357535262,1744131127633,-681.07,0.00029863,2]
[357535263,1744131127648,-806.29,0.00029863,2]
[357535264,1744131127662,-500.0,0.00029863,2]
[357535265,1744131127677,-596.17,0.00029863,2]
[357535266,1744131127691,-500.0,0.00029863,2]
[357535267,1744131127706,-623.11,0.00029863,2]
[357535268,1744131127721,-643.21,0.00029863,2]
[357535269,1744131127736,-895.87,0.00029863,2]
[357535270,1744131127752,-591.63,0.00029863,2]
[357535271,1744131127766,-500.0,0.00029863,2]
[357535272,1744131127781,-500.0,0.00029863,2]
[357535273,1744131127795,-840.88,0.00029863,2]
[357535274,1744131127810,-500.0,0.00029863,2]
[357535275,1744131127829,-915.65,0.00029863,2]
[357535276,1744131127844,-500.0,0.00029863,2]
[357535277,1744131127860,-2601.54,0.00029863,2]
[357535278,1744131127875,-500.0,0.00029863,2]
[357535279,1744131127897,-6189.26,0.00029863,2]
[357535280,1744131127912,-1470.66,0.00029863,2]
[357535281,1744131127926,-500.0,0.00029863,2]
[357535282,1744131127941,-1161.33,0.00029863,2]
[357535283,1744131127956,-557.06,0.00029863,2]
[357535284,1744131127970,-500.0,0.00029863,2]
[357535285,1744131127985,-748.03,0.00029863,2]
[357535286,1744131127999,-1784.68,0.00029863,2]
[357535287,1744131128014,-500.0,0.00029863,2]
[357535288,1744131128029,-500.0,0.00029863,2]
[357535289,1744131128044,-736.96,0.00029863,2]
[357535290,1744131128059,-802.54,0.00029863,2]
[357535291,1744131128076,-500.0,0.00029863,2]
[357535292,1744131128093,-500.0,0.00029863,2]
[357535293,1744131128108,-528.16,0.00029863,2]
[357535294,1744131128124,-1759.78,0.00029863,2]
[357535295,1744131128140,-880.64,0.00029863,2]
[357535296,1744131128155,-878.89,0.00029863,2]
[357535297,1744131128172,-939.58,0.00029863,2]
[357535298,1744131128186,-735.03,0.00029863,2]
[357535299,1744131128202,-524.35,0.00029863,2]
[357535300,1744131128217,-500.0,0.00029863,2]
[357535301,1744131128233,-500.0,0.00029863,2]
[357535302,1744131128248,-1127.76,0.00029863,2]
[357535303,1744131128540,-500.0,0.00029863,2]
[357535304,1744131128551,-500.0,0.00029863,2]
[357535305,1744131128561,-610.17871432,0.00029863,2]
[357535306,1744131128571,-1017.57,0.00029863,2]
[357535307,1744131128586,-950.17,0.00029863,2]
[357535308,1744131128596,-6178.64,0.00029863,2]
[357535309,1744131128606,-396.28,0.00029863,2]
[357535310,1744131128616,-513.55,0.00029863,2]
[357535311,1744131128625,-500.0,0.00029863,2]
[357535312,1744131128635,-1089.76,0.00029863,2]
[357535313,1744131128644,-549.65,0.00029863,2]
[357535314,1744131128653,-578.6,0.00029863,2]
[357535315,1744131128663,-1940.65,0.00029863,2]
[357535316,1744131128672,-841.6,0.00029863,2]
[357535317,1744131128682,-671.05,0.00029863,2]
[357535318,1744131128691,-3839.98,0.00029863,2]
[357535319,1744131128701,-500.0,0.00029863,2]
[357535320,1744131128710,-500.0,0.00029863,2]
[357535321,1744131128719,-558.9,0.00029863,2]